bitfinex/quotes_ETHUSD_20220227
["timestamp","ask_amount","ask_price","bid_price","bid_amount"]
[1645937600457,15.1297,2704.2,2704.1,0.25473441]
[1645937600858,16.4677,2704.2,2704.1,0.25473441]
[1645937601363,16.4677,2704.2,2702.6,2.73119867]
[1645937601364,0.3697,2703.9,2702.6,2.73119867]
[1645937601659,11.26,2704.1,2702.6,2.73119867]
[1645937601660,0.3697,2703.7,2702.6,2.73119867]
[1645937601859,0.5909,2703.8,2702.5,1.6774]
[1645937602058,3.5,2703.7,2702.5,1.1474]
[1645937602258,1.31556146,2703.1,2702.5,1.6774]
[1645937602460,1.31556146,2703.1,2702.5,0.53]
[1645937602902,3.5,2703.5,2702.5,0.53]
[1645937602903,4.7328,2703.5,2702.5,0.53]
[1645937603305,1.2328,2703.5,2702.5,0.53]
[1645937603506,1.2328,2703.5,2702.7,0.00116193]
[1645937603705,1.19869775,2703.1,2702.7,0.00116193]
[1645937604407,1.19869775,2703.1,2702.4,0.06]
[1645937604608,1.19869775,2703.1,2702.4,0.06096]
[1645937604809,1.19869775,2703.1,2702.8,0.00383529]
[1645937605610,1.19869775,2703.1,2702.4,0.06]
[1645937606653,1.19869775,2703.1,2702.4,0.01]
[1645937606855,4.69869775,2703.1,2702.4,0.01]
[1645937607054,4.69869775,2703.1,2702.6,0.00112807]
[1645937607456,4.69869775,2703.1,2702.0,0.75610104]
[1645937607655,8.19869775,2703.1,2702.0,0.75610104]
[1645937608259,8.56839775,2703.1,2702.0,0.22610104]
[1645937608462,19.82839775,2703.1,2702.0,0.22610104]
[1645937608661,1.03309092,2702.4,2702.0,0.22610104]
[1645937608861,1.03309092,2702.4,2702.1,7.4014]
[1645937609264,3.6479,2702.8,2702.1,7.4014]
[1645937610162,0.3697,2702.7,2702.1,7.4014]
[1645937610414,14.9079,2702.8,2702.1,7.4014]
[1645937610415,0.5176,2702.8,2702.1,7.4014]
[1645937610613,0.5176,2702.8,2702.1,7.40274342]
[1645937610814,0.1479,2702.8,2702.1,7.40274342]
[1645937611013,0.1479,2702.9,2702.1,7.40274342]
[1645937611213,7.0,2703.1,2702.2,0.00096]
[1645937611412,1.11248006,2703.0,2702.4,1.11866807]
[1645937611615,1.11248006,2703.0,2702.2,0.00096]
[1645937612213,3.5,2702.9,2702.2,0.00096]
[1645937612414,3.5,2702.9,2702.1,7.40586677]
[1645937612816,1.11248006,2703.0,2702.1,7.4014]
[1645937613020,1.11248006,2703.0,2702.2,0.00096]
[1645937614076,7.0,2703.1,2702.2,0.00096]
[1645937614261,3.5,2703.1,2702.2,0.00096]
[1645937615259,3.5,2703.1,2702.5,1.36332945]
[1645937615460,3.5,2703.1,2702.2,0.00096]
[1645937615461,7.0,2703.1,2702.2,0.00096]
[1645937615667,3.5,2703.1,2702.2,0.00096]
[1645937615863,7.1479,2703.1,2702.2,0.00096]
[1645937616062,0.3697,2703.0,2702.2,0.00096]
[1645937616266,3.5,2702.9,2702.2,0.00096]
[1645937616662,1.31187924,2702.7,2702.2,0.00096]
[1645937616863,1.31187924,2702.7,2702.1,7.40586677]
[1645937617664,7.1479,2703.1,2702.1,7.4014]
[1645937617895,7.1479,2703.1,2702.2,0.00096]
[1645937617896,3.6479,2703.1,2702.2,0.00096]
[1645937618095,7.1479,2703.1,2702.2,0.00096]
[1645937618298,11.26,2703.0,2702.2,0.00096]
[1645937618495,7.1479,2703.1,2702.2,0.00096]
[1645937618496,3.6479,2703.1,2702.2,0.00096]
[1645937618701,1.18648431,2702.8,2702.2,0.00096]
[1645937618895,1.18648431,2702.8,2702.1,7.4014]
[1645937619097,0.3697,2703.0,2702.1,7.40586677]
[1645937619299,8.4479,2703.1,2702.2,0.00096]
[1645937619497,3.5,2703.1,2702.2,0.00096]
[1645937620198,7.0,2703.1,2702.3,1.3265205]
[1645937620397,3.5,2703.1,2702.3,1.3265205]
[1645937620802,7.0,2703.1,2702.3,1.3265205]
[1645937622051,8.31481471,2703.1,2702.3,1.3265205]
[1645937622456,7.0,2703.1,2702.3,1.3265205]
[1645937623856,3.5,2703.1,2702.3,1.3265205]
[1645937624056,7.0,2703.1,2702.3,1.3265205]
[1645937624255,3.5,2703.1,2702.3,1.3265205]
[1645937624656,7.0,2703.1,2702.3,1.3265205]
[1645937625298,3.5,2703.1,2702.3,1.3265205]
[1645937625702,3.5,2703.0,2702.3,1.3265205]
[1645937625902,0.3697,2702.9,2702.3,1.3265205]
[1645937626112,3.5,2703.0,2702.3,1.3265205]
[1645937626305,3.8697,2703.0,2702.3,1.3265205]
[1645937626708,3.5,2703.0,2702.3,1.3265205]
[1645937627005,3.5,2703.0,2702.2,0.00096]
[1645937627209,0.3697,2702.9,2702.2,0.00096]
[1645937627504,3.5,2703.0,2702.2,0.00096]
[1645937627904,3.6479,2703.1,2702.2,0.00096]
[1645937628105,7.1479,2703.1,2702.5,1.25154431]
[1645937628304,7.1479,2703.1,2702.2,0.00096]
[1645937628508,3.6479,2703.1,2702.2,0.00096]
[1645937628714,3.5,2703.1,2702.2,0.00096]
[1645937628910,3.5,2703.1,2702.3,0.71008108]
[1645937629167,3.5,2703.1,2702.3,1.01008108]
[1645937629367,3.5,2703.1,2702.4,7.58088108]
[1645937629564,3.5,2703.1,2702.5,1.77043452]
[1645937629764,3.5,2703.1,2702.6,7.4003]
[1645937629965,3.5,2703.1,2702.7,0.53]
[1645937630168,3.5,2703.1,2702.8,7.3997]
[1645937630367,3.5,2703.1,2702.9,0.53]
[1645937630569,0.00567746,2703.4,2702.9,0.53]
[1645937630869,4.55478693,2704.5,2702.9,0.53]
[1645937630870,6.5806,2704.4,2703.0,7.3992]
[1645937631068,6.4327,2704.4,2703.1,0.8997]
[1645937631271,0.00567813,2703.4,2703.1,1.01008108]
[1645937631468,0.00567813,2703.4,2703.2,8.60430604]
[1645937631666,0.00567813,2703.4,2703.3,0.53]
[1645937631867,0.00567813,2703.4,2703.3,7.9284]
[1645937632267,2.074,2704.4,2703.3,8.9284]
[1645937632466,1.83798693,2704.5,2703.3,8.9284]
[1645937632467,0.00567827,2703.5,2703.3,8.9284]
[1645937632907,0.00567827,2703.5,2703.3,11.93663648]
[1645937633310,0.65328693,2704.5,2703.3,11.93663648]
[1645937633708,0.00567661,2703.5,2703.3,8.9284]
[1645937634613,0.65328693,2704.5,2703.8,1.11159155]
[1645937634813,0.00567661,2703.5,2703.3,8.3984]
[1645937635815,1.08830471,2704.4,2703.4,1.93724663]
[1645937636016,0.00567661,2703.5,2703.4,1.93724663]
[1645937636215,0.00567661,2703.5,2703.4,9.33524663]
[1645937636864,0.65328693,2704.5,2703.4,9.33524663]
[1645937637364,0.00567683,2703.6,2703.4,9.33524663]
[1645937637563,0.00567683,2703.6,2703.4,21.89524663]
[1645937637765,0.00567683,2703.6,2703.5,0.19289436]
[1645937637962,0.00567683,2703.6,2703.5,8.12069436]
[1645937638164,0.65328693,2704.5,2703.5,8.12069436]
[1645937638365,0.00567678,2703.7,2703.5,9.12069436]
[1645937639364,0.65328693,2704.5,2703.5,9.12069436]
[1645937639564,0.00567676,2703.7,2703.5,9.12069436]
[1645937640509,4.15328693,2704.5,2703.5,9.12069436]
[1645937640909,0.00567673,2703.7,2703.5,9.12069436]
[1645937641713,5.29951349,2704.5,2703.5,9.12069436]
[1645937641911,4.15328693,2704.5,2703.5,9.12069436]
[1645937642113,0.00567673,2703.7,2703.5,9.12069436]
[1645937642809,0.00567673,2703.7,2703.5,8.12069436]
[1645937643011,1.73611504,2704.5,2703.5,8.12069436]
[1645937643012,0.65328693,2704.5,2703.5,8.12069436]
[1645937643211,0.00567673,2703.7,2703.5,8.12069436]
[1645937643815,0.00567673,2703.7,2703.5,8.63823035]
[1645937644093,0.65328693,2704.5,2703.5,8.13823035]
[1645937644282,0.65328693,2704.5,2703.5,8.08823035]
[1645937644478,0.00567673,2703.7,2703.5,8.08823035]
[1645937644677,0.00567673,2703.7,2703.5,7.9278]
[1645937645277,0.00567673,2703.7,2703.5,8.9278]
[1645937645482,0.65328693,2704.5,2703.5,9.11310903]
[1645937645693,0.00567673,2703.7,2703.5,8.9278]
[1645937646686,0.65328693,2704.5,2703.5,8.9278]
[1645937646887,0.00567673,2703.7,2703.5,7.9278]
[1645937647084,0.00567673,2703.7,2703.5,8.9278]
[1645937647811,0.65328693,2704.5,2703.5,8.9278]
[1645937648011,0.00567673,2703.7,2703.5,7.9278]
[1645937648813,0.00567673,2703.7,2703.5,8.9278]
[1645937649015,0.65328693,2704.5,2703.5,8.9278]
[1645937649215,0.00567673,2703.7,2703.5,8.9278]
[1645937649416,0.00567673,2703.7,2703.5,8.92636696]
[1645937649915,0.00567673,2703.7,2703.5,7.92636696]
[1645937650117,3.5,2704.4,2703.5,7.92636696]
[1645937650315,3.6479,2704.4,2703.5,7.92636696]
[1645937650521,0.00567673,2703.7,2703.5,7.92636696]
[1645937650719,0.00567673,2703.7,2703.5,7.82636696]
[1645937651119,0.00567673,2703.7,2703.5,7.29636696]
[1645937651580,0.1479,2704.0,2703.5,7.29636696]
[1645937651764,0.00567673,2703.7,2703.5,7.29636696]
[1645937652565,0.5176,2704.0,2703.5,7.29636696]
[1645937652768,0.00567673,2703.7,2703.5,7.29636696]
[1645937653767,0.3697,2704.0,2703.5,7.29636696]
[1645937653967,0.00567673,2703.7,2703.5,7.29636696]
[1645937654970,0.3697,2704.4,2703.5,7.29636696]
[1645937655322,0.80118693,2704.5,2703.5,7.29636696]
[1645937655323,2.30567673,2703.7,2703.6,0.53]
[1645937655526,0.65328693,2704.5,2704.2,6.619]
[1645937655727,0.65328693,2704.5,2704.3,8.027]
[1645937656123,0.65328693,2704.5,2704.3,9.027]
[1645937659363,0.65328693,2704.5,2704.3,8.977]
[1645937660164,0.65918206,2704.5,2704.3,8.977]
[1645937660370,0.60918206,2704.5,2704.3,8.977]
[1645937660969,0.60328693,2704.5,2704.3,8.977]
[1645937661169,0.60918206,2704.5,2704.3,8.977]
[1645937662169,0.60328693,2704.5,2704.3,8.977]
[1645937662570,0.60918206,2704.5,2704.3,8.977]
[1645937663417,0.60328693,2704.5,2704.3,8.977]
[1645937663617,0.60918206,2704.5,2704.3,8.977]
[1645937663817,0.60918206,2704.5,2704.3,9.277]
[1645937664219,2.90918206,2704.5,2704.3,10.36635626]
[1645937664419,2.90918206,2704.5,2704.4,6.619]
[1645937664717,2.90328693,2704.5,2704.4,16.10397866]
[1645937664922,2.90328693,2704.5,2704.4,15.9458]
[1645937664923,2.90918206,2704.5,2704.4,15.9458]
[1645937665525,0.60918206,2704.5,2704.4,15.9458]
[1645937665722,0.60328693,2704.5,2704.4,15.9458]
[1645937666323,0.60328693,2704.5,2704.4,27.2058]
[1645937666570,0.60328693,2704.5,2704.4,15.9458]
[1645937666961,0.60328693,2704.5,2704.4,27.2058]
[1645937668863,0.60328693,2704.5,2704.4,25.9058]
[1645937670311,0.60328693,2704.5,2704.4,27.2058]
[1645937671815,0.60328693,2704.5,2704.4,26.9058]
[1645937672013,0.60328693,2704.5,2704.4,27.2058]
[1645937673014,0.60328693,2704.5,2704.4,26.9058]
[1645937673616,0.60328693,2704.5,2704.4,27.2058]
[1645937674064,0.60328693,2704.5,2704.4,27.38588108]
[1645937674266,0.60328693,2704.5,2704.4,28.31015108]
[1645937674865,0.60328693,2704.5,2704.4,29.31015108]
[1645937675468,0.60328693,2704.5,2704.4,28.01015108]
[1645937675670,0.60328693,2704.5,2704.4,29.31015108]
[1645937676671,0.60328693,2704.5,2704.4,29.01015108]
[1645937679714,0.60328693,2704.5,2704.4,28.01015108]
[1645937679916,0.60328693,2704.5,2704.4,29.01015108]
[1645937680820,0.50328693,2704.5,2704.4,29.01015108]
[1645937681120,0.50328693,2704.5,2704.4,15.6458]
[1645937681322,0.50328693,2704.5,2704.4,14.6458]
[1645937681765,0.50328693,2704.5,2704.4,15.6458]
[1645937682166,0.50328693,2704.5,2704.4,14.4958]
[1645937682376,0.50328693,2704.5,2704.4,15.4958]
[1645937682971,0.50328693,2704.5,2704.4,14.4958]
[1645937685170,0.50328693,2704.5,2704.4,15.4958]
[1645937685431,0.50328693,2704.5,2704.4,14.4958]
[1645937686733,0.87298693,2704.5,2704.4,14.4958]
[1645937686935,0.87298693,2704.5,2704.4,8.0268]
[1645937687732,1.91184997,2704.5,2704.4,7.4968]
[1645937692569,0.87298693,2704.5,2704.4,7.4968]
[1645937693213,0.50328693,2704.5,2704.4,7.4968]
[1645937693810,0.50328693,2704.5,2704.4,8.0268]
[1645937695616,0.87298693,2704.5,2704.4,8.0268]
[1645937696576,0.87298693,2704.5,2704.4,6.80698897]
[1645937698379,2.43525383,2704.5,2704.4,6.80698897]
[1645937698577,0.87298693,2704.5,2704.4,6.80698897]
[1645937705564,0.50328693,2704.5,2704.4,6.80698897]
[1645937711424,0.50328693,2704.5,2704.4,7.33698897]
[1645937712081,0.50328693,2704.5,2704.4,8.80496814]
[1645937712276,0.00567704,2704.6,2704.5,8.0]
[1645937712581,1.6368,2706.0,2704.7,7.0]
[1645937712779,1.6368,2706.0,2704.8,26.5945]
[1645937712780,1.36638548,2705.9,2704.8,26.5945]
[1645937712979,1.4072539,2705.9,2705.0,6.619]
[1645937713176,0.04086842,2705.9,2705.1,8.7146]
[1645937713377,0.04086842,2705.9,2705.2,0.53]
[1645937713581,0.04086842,2705.9,2705.3,8.1841]
[1645937713779,0.04086842,2705.9,2705.4,0.53]
[1645937715317,0.00455206,2705.8,2705.4,0.53]
[1645937715520,0.00455206,2705.8,2705.5,8.1835]
[1645937715722,0.00455206,2705.8,2705.6,0.53]
[1645937716322,0.04086842,2705.9,2705.6,0.53]
[1645937716521,0.00455206,2705.8,2705.6,0.53]
[1645937717530,0.04086842,2705.9,2705.6,0.53]
[1645937717821,0.00589448,2705.8,2705.6,0.53]
[1645937718824,0.04086842,2705.9,2705.6,0.53]
[1645937719077,0.00589448,2705.8,2705.6,0.53]
[1645937719863,0.04086842,2705.9,2705.6,0.53]
[1645937720266,0.00589448,2705.8,2705.6,0.53]
[1645937721068,0.04086842,2705.9,2705.6,0.53]
[1645937721268,0.00589448,2705.8,2705.6,0.53]
[1645937722270,0.04086842,2705.9,2705.6,0.53]
[1645937722670,0.00589448,2705.8,2705.6,0.53]
[1645937723514,0.04086842,2705.9,2705.6,0.53]
[1645937723713,0.00589448,2705.8,2705.6,0.53]
[1645937724717,0.04086842,2705.9,2705.6,0.53]
[1645937725019,0.00589448,2705.8,2705.6,0.53]
[1645937726021,0.04086842,2705.9,2705.6,0.53]
[1645937726220,0.00589448,2705.8,2705.6,0.53]
[1645937727170,0.04086842,2705.9,2705.6,0.53]
[1645937727369,0.00589448,2705.8,2705.6,0.53]
[1645937728367,0.04086842,2705.9,2705.6,0.53]
[1645937728568,0.00589448,2705.8,2705.6,0.53]
[1645937729475,0.04086842,2705.9,2705.6,0.53]
[1645937729771,0.00589448,2705.8,2705.6,0.53]
[1645937730640,0.04086842,2705.9,2705.6,0.53]
[1645937731037,0.00589448,2705.8,2705.6,0.53]
[1645937731845,0.04086842,2705.9,2705.6,0.53]
[1645937732145,0.00589448,2705.8,2705.6,0.53]
[1645937733142,0.04086842,2705.9,2705.6,0.53]
[1645937733342,0.00589448,2705.8,2705.6,0.53]
[1645937734378,0.04086842,2705.9,2705.6,0.53]
[1645937734568,0.00589448,2705.8,2705.6,0.53]
[1645937735473,0.04086842,2705.9,2705.6,0.53]
[1645937735672,0.00589448,2705.8,2705.6,0.53]
[1645937736575,0.00589448,2705.8,2705.5,8.1835]
[1645937736776,0.04086842,2705.9,2705.5,8.1835]
[1645937736975,0.00589448,2705.8,2705.5,8.1835]
[1645937737172,0.15359448,2705.8,2705.5,8.1835]
[1645937737379,2.5774286,2705.7,2705.5,8.1835]
[1645937737575,1.01563544,2705.7,2705.5,6.51756263]
[1645937737813,3.5,2705.6,2705.5,6.51756263]
[1645937739015,4.51563544,2705.7,2705.5,6.51756263]
[1645937739518,1.56179459,2705.6,2705.5,6.51756263]
[1645937741868,5.43149459,2705.6,2705.5,6.51756263]
[1645937742064,1.93149459,2705.6,2705.5,6.51756263]
[1645937742271,5.43149459,2705.6,2705.5,6.51756263]
[1645937742465,1.93149459,2705.6,2705.5,6.51756263]
[1645937742668,5.43149459,2705.6,2705.5,6.51756263]
[1645937742865,1.56179459,2705.6,2705.5,6.51756263]
[1645937748921,1.56179459,2705.8,2705.5,6.51756263]
[1645937749164,1.56179459,2705.7,2705.5,6.51756263]
[1645937749471,1.56179459,2705.6,2705.5,6.51756263]
[1645937750067,1.56179459,2705.8,2705.5,6.51756263]
[1645937750377,1.41517832,2705.7,2705.5,6.51756263]
[1645937750670,1.56179459,2705.6,2705.5,6.51756263]
[1645937751470,1.56179459,2705.9,2705.5,6.51756263]
[1645937751870,1.60266301,2705.9,2705.5,6.51756263]
[1645937752071,1.56179459,2705.8,2705.5,6.51756263]
[1645937752269,2.77638335,2705.8,2705.5,6.51756263]
[1645937752469,1.56179459,2705.7,2705.5,6.51756263]
[1645937754037,0.04086842,2705.9,2705.5,6.51756263]
[1645937754335,1.56165747,2705.8,2705.5,6.51756263]
[1645937754733,1.56165747,2705.8,2705.5,7.04756263]
[1645937756135,0.04086842,2705.9,2705.6,3.5]
[1645937756337,0.04086842,2705.9,2705.7,0.53]
[1645937756577,0.04086842,2705.9,2705.8,0.53]
[1645937759271,1.60241632,2705.9,2705.8,0.53]
[1645937760314,1.60241632,2705.9,2705.5,7.04756263]
[1645937760520,1.5615479,2705.8,2705.5,7.04756263]
[1645937760723,1.6018479,2705.8,2705.5,7.04756263]
[1645937760921,0.0403,2705.8,2705.5,7.04756263]
[1645937761721,0.0403,2705.8,2705.5,6.51756263]
[1645937761722,1.56166398,2705.7,2705.5,6.51756263]
[1645937762519,1.5603504,2705.7,2705.5,6.51756263]
[1645937763119,1.56625682,2705.7,2705.5,6.51756263]
[1645937763323,0.00590642,2705.7,2705.5,6.51756263]
[1645937764173,0.0403,2705.8,2705.5,6.51756263]
[1645937764478,0.00590642,2705.7,2705.5,6.51756263]
[1645937765273,0.0403,2705.8,2705.5,6.51756263]
[1645937765477,0.00590642,2705.7,2705.5,6.51756263]
[1645937766579,0.0403,2705.8,2705.5,6.51756263]
[1645937766783,0.00590642,2705.7,2705.5,6.51756263]
[1645937767280,0.00590642,2705.7,2705.5,7.04756263]
[1645937767679,0.0403,2705.8,2705.6,1.24381254]
[1645937767926,0.0403,2705.8,2705.7,4.03]
[1645937768126,0.0403,2705.8,2705.7,13.879]
[1645937768724,0.0403,2705.8,2705.7,10.379]
[1645937769523,0.00565627,2705.9,2705.8,7.5]
[1645937769726,0.00565627,2705.9,2705.8,8.33]
[1645937769925,0.00565627,2705.9,2705.8,9.33]
[1645937770125,0.0017834,2706.7,2705.9,0.21366011]
[1645937770327,3.0205,2706.8,2706.0,10.3782]
[1645937770534,0.0017834,2706.7,2706.3,1.32694616]
[1645937770733,0.0017834,2707.0,2706.4,0.53]
[1645937770934,3.1620834,2707.1,2706.4,0.53]
[1645937771137,3.1603,2707.1,2706.4,0.53]
[1645937771337,0.1494834,2707.2,2706.4,0.53]
[1645937771589,0.00569241,2706.9,2706.4,0.53]
[1645937771771,0.00569241,2706.9,2706.4,0.69893234]
[1645937772470,0.0017834,2707.2,2706.4,0.69893234]
[1645937772471,1.17691688,2707.2,2706.4,0.69893234]
[1645937772670,1.17513348,2707.2,2706.4,0.69893234]
[1645937772870,0.00569246,2706.8,2706.4,0.69893234]
[1645937773272,0.00569246,2706.8,2706.4,0.53]
[1645937773570,0.00569246,2706.8,2706.1,0.53]
[1645937773779,0.0017834,2707.1,2706.1,0.53]
[1645937773972,0.0017834,2707.1,2706.0,10.8482]
[1645937773973,1.16092051,2706.7,2706.0,10.8482]
[1645937774872,1.15522803,2706.7,2706.0,10.8482]
[1645937775327,1.15522803,2706.7,2706.0,9.8482]
[1645937775930,1.05522803,2706.7,2706.0,9.8482]
[1645937777631,0.00569117,2706.5,2706.0,9.8482]
[1645937778633,1.42671143,2706.7,2706.0,9.8482]
[1645937778833,0.00456566,2706.4,2706.0,9.8482]
[1645937779671,0.0017834,2706.6,2706.0,9.8482]
[1645937779871,1.05522803,2706.7,2706.0,9.8482]
[1645937780073,0.00569417,2706.3,2706.0,9.8482]
[1645937780979,0.0017834,2706.6,2706.1,0.53]
[1645937781178,0.00569419,2706.3,2706.2,9.8476]
[1645937781379,0.00569419,2706.3,2706.2,10.6776]
[1645937781591,0.00569419,2706.3,2706.2,11.6776]
[1645937781777,0.00569419,2706.3,2706.2,23.9376]
[1645937782278,0.0017834,2707.3,2706.3,0.16122821]
[1645937782478,0.00569415,2706.4,2706.2,2.3]
[1645937782680,0.00569415,2706.4,2706.3,8.9202]
[1645937782923,0.00569415,2706.4,2706.3,9.9202]
[1645937783123,0.00569415,2706.4,2706.3,8.9202]
[1645937783323,0.0017834,2707.3,2706.3,13.75787643]
[1645937783724,0.00574668,2706.5,2706.3,12.4202]
[1645937783924,0.00574668,2706.5,2706.3,8.9202]
[1645937784126,0.00574668,2706.5,2706.3,9.0679]
[1645937784523,0.0017834,2707.4,2706.3,9.0679]
[1645937784824,0.00020996,2706.5,2706.4,3.5]
[1645937785024,0.00020996,2706.5,2706.4,7.9199]
[1645937785223,0.00020996,2706.5,2706.4,8.9199]
[1645937785827,1.56282133,2707.4,2706.4,8.9199]
[1645937786029,1.56282133,2707.4,2706.5,3.5]
[1645937786227,1.56282133,2707.4,2706.6,0.53]
[1645937786866,1.56282133,2707.4,2706.6,1.8648571]
[1645937788274,1.56282133,2707.4,2706.6,0.53]
[1645937789672,0.00568576,2707.1,2706.6,0.53]
[1645937790723,0.0017834,2707.4,2706.6,0.53]
[1645937790925,0.00578278,2707.0,2706.6,0.53]
[1645937791122,0.00578278,2707.0,2706.7,7.3891]
[1645937791828,0.0017834,2707.4,2706.7,7.3891]
[1645937792024,0.00578278,2707.0,2706.7,7.3891]
[1645937793024,0.0017834,2707.4,2706.7,7.3891]
[1645937793225,0.00578278,2707.0,2706.7,7.3891]
[1645937794269,0.0017834,2707.4,2706.7,7.3891]
[1645937794471,0.0056799,2707.0,2706.7,7.3891]
[1645937794670,0.0056799,2707.0,2706.7,7.9191]
[1645937795371,0.0017834,2707.4,2706.7,7.9191]
[1645937795573,0.0056799,2707.0,2706.7,7.9191]
[1645937796574,0.0017834,2707.4,2706.7,8.13718788]
[1645937796774,0.0056799,2707.0,2706.7,8.13718788]
[1645937796979,0.0056799,2707.0,2706.7,9.43718788]
[1645937797176,0.0056799,2707.0,2706.7,10.43718788]
[1645937797378,0.0056799,2707.0,2706.8,1.0]
[1645937797575,0.0056799,2707.0,2706.9,7.9185]
[1645937797816,0.0017834,2707.9,2706.9,9.2185]
[1645937798015,0.00569493,2707.0,2706.9,9.2185]
[1645937799023,0.0017834,2707.9,2706.9,9.2185]
[1645937799321,0.00569491,2707.1,2707.0,0.1477]
[1645937799526,0.00569491,2707.1,2707.0,8.066]
[1645937799720,0.00569491,2707.1,2707.0,9.366]
[1645937800220,1.1995384,2707.9,2707.0,9.366]
[1645937800421,0.00569486,2707.2,2707.0,9.366]
[1645937801322,0.0017834,2707.8,2707.0,9.366]
[1645937801780,0.00569484,2707.2,2707.0,9.366]
[1645937802183,0.00569484,2707.2,2707.0,9.066]
[1645937802580,0.0017834,2707.8,2707.0,9.066]
[1645937802979,0.00569264,2707.2,2707.0,9.366]
[1645937803881,0.0017834,2707.8,2707.0,9.366]
[1645937804083,0.00569264,2707.2,2707.0,9.366]
[1645937804882,9.264e-05,2707.2,2707.1,1.0]
[1645937805085,0.0017834,2708.1,2707.1,15.90668652]
[1645937805324,1.8672,2708.3,2707.1,15.90668652]
[1645937805325,0.0017834,2708.2,2707.2,6.619]
[1645937805530,0.0017834,2708.2,2707.4,1.0]
[1645937805734,1.8689834,2708.3,2707.5,8.2169]
[1645937805931,1.40592012,2708.2,2707.5,8.2169]
[1645937806132,1.40592012,2708.2,2707.5,9.2169]
[1645937806834,1.8689834,2708.3,2707.5,9.2169]
[1645937807235,0.0017834,2708.3,2707.5,9.2169]
[1645937807432,1.56199826,2708.5,2707.6,1.1653124]
[1645937807634,0.0017834,2708.5,2707.7,0.53]
[1645937808033,1.25416295,2708.5,2707.7,0.53]
[1645937808234,0.1477,2708.8,2707.8,31.6461]
[1645937808435,0.69316366,2709.4,2708.2,6.619]
[1645937808436,0.00181185,2708.5,2708.2,6.619]
[1645937808634,0.00181185,2708.7,2708.3,1.68719764]
[1645937808831,1.5598962,2709.3,2708.4,1.53]
[1645937808832,0.00181185,2709.3,2708.4,1.53]
[1645937809070,1.5598962,2709.3,2708.5,7.3842]
[1645937809372,1.5598962,2709.2,2708.6,0.53]
[1645937809570,0.00181185,2709.3,2708.7,7.3836]
[1645937809775,1.56162994,2709.5,2708.8,0.53]
[1645937809976,1.55981809,2709.5,2708.8,0.53]
[1645937810176,0.00591073,2709.0,2708.8,0.53]
[1645937810375,0.00591073,2709.0,2708.9,7.3831]
[1645937810575,1.51402279,2709.0,2708.9,7.3831]
[1645937810775,3.07403318,2709.0,2708.9,7.3831]
[1645937810976,3.06812245,2709.0,2708.9,7.3831]
[1645937812584,3.06812245,2709.0,2708.2,0.53]
[1645937812585,0.3697,2708.8,2708.2,0.53]
[1645937812842,0.3697,2708.6,2707.9,0.53]
[1645937813028,16.26181185,2708.9,2707.6,2.481]
[1645937813029,5.42971039,2708.5,2707.6,2.481]
[1645937813228,5.42971039,2708.5,2707.5,1.83]
[1645937813229,3.87151185,2708.5,2707.5,1.83]
[1645937813429,0.37151185,2708.5,2707.5,0.83]
[1645937813630,0.00591116,2708.2,2707.5,0.53]
[1645937814630,1.17391147,2708.1,2707.5,0.53]
[1645937814934,0.00591126,2708.0,2707.5,0.53]
[1645937815937,1.17391147,2708.1,2707.5,0.53]
[1645937816138,0.00591131,2707.9,2707.5,0.53]
[1645937816970,0.56222992,2708.1,2707.5,1.53]
[1645937817371,0.00591133,2707.8,2707.5,1.53]
[1645937818170,4.01921185,2708.7,2707.5,1.53]
[1645937818372,1.38216573,2708.1,2707.5,1.53]
[1645937818574,0.00591136,2707.8,2707.6,7.3861]
[1645937818773,0.00591136,2707.8,2707.7,0.53]
[1645937818974,0.00591136,2707.8,2707.7,7.9163]
[1645937819376,0.00181185,2708.5,2707.7,8.9163]
[1645937819777,0.00591131,2707.9,2707.7,8.9163]
[1645937820446,0.00591131,2707.9,2707.8,3.5]
[1645937820447,1.131e-05,2707.9,2707.8,3.5]
[1645937820641,1.1827,2709.4,2708.0,0.92295]
[1645937820642,0.31923204,2708.7,2708.0,0.92295]
[1645937820838,0.31923204,2708.7,2708.2,6.619]
[1645937821040,3.2756,2709.3,2708.3,12.4147]
[1645937821338,1.55983174,2709.2,2708.3,11.7147]
[1645937821540,1.30226777,2709.1,2708.5,1.08048902]
[1645937821737,1.30226777,2709.1,2708.6,7.9139]
[1645937822140,1.30226777,2709.1,2708.6,8.9139]
[1645937823441,3.2756,2709.3,2708.6,8.9139]
[1645937823739,1.55983623,2709.2,2708.6,8.9139]
[1645937823939,1.55983623,2709.1,2708.6,8.9139]
[1645937824174,3.1759,2709.4,2708.6,8.9139]
[1645937824575,0.00591076,2709.0,2708.6,8.9139]
[1645937825581,0.00180528,2709.3,2708.6,8.9139]
[1645937825780,0.00591078,2708.9,2708.6,8.9139]
[1645937825982,0.00591078,2708.9,2708.6,7.9139]
[1645937826182,0.00591078,2708.9,2708.6,7.3839]
[1645937826581,0.1476,2709.1,2708.6,7.3839]
[1645937826782,1.14964389,2708.9,2708.6,7.3839]
[1645937826980,1.1555547,2708.9,2708.6,7.3839]
[1645937827851,1.14964389,2708.9,2708.6,7.3839]
[1645937828039,1.51934389,2708.9,2708.6,7.3839]
[1645937828236,1.55993532,2708.8,2708.6,7.3839]
[1645937829338,0.00591083,2708.8,2708.6,7.3839]
[1645937830239,0.00180528,2709.2,2708.6,7.3839]
[1645937830444,0.5173,2709.3,2708.6,7.3839]
[1645937830445,1.22892941,2708.7,2708.6,7.3839]
[1645937830646,1.22892941,2708.7,2708.6,5.7199971]
[1645937831046,0.00591083,2708.8,2708.6,5.7199971]
[1645937831442,0.3697,2709.1,2708.6,5.7199971]
[1645937831677,0.00591083,2708.8,2708.6,5.7199971]
[1645937832076,1.24546385,2708.7,2708.6,5.7199971]
[1645937833079,1.61516385,2708.7,2708.6,5.7199971]
[1645937833486,1.24546385,2708.7,2708.6,5.7199971]
[1645937834487,1.80179264,2708.7,2708.6,5.7199971]
[1645937835534,0.55632879,2708.7,2708.6,5.7199971]
[1645937843928,5.61620597,2708.7,2708.6,5.7199971]